[Event "*** SCC Grand Prix: Titled Tuesday Blitz"]
[Site "Chess.com"]
[Date "2020.06.09"]
[Round "8"]
[White "j2806"]
[Black "Chuchofrio1"]
[Result "0-1"]
[WhiteElo "2022"]
[BlackElo "2189"]
[TimeControl "180+1"]
[EndTime "10:34:12 PDT"]
[Termination "Chuchofrio1 won by resignation"]

1. e4 {[%clk 0:03:00.9]} 1... c5 {[%clk 0:02:59.2]} 2. Nf3 {[%clk 0:03:00.4]}
2... Nc6 {[%clk 0:02:59.4]} 3. d4 {[%clk 0:03:00.7]} 3... cxd4 {[%clk
0:03:00.3]} 4. Nxd4 {[%clk 0:03:01.2]} 4... Nf6 {[%clk 0:03:00.9]} 5. Nc3 {[%clk
0:03:00.2]} 5... e5 {[%clk 0:03:00.6]} 6. Ndb5 {[%clk 0:02:59.8]} 6... d6 {[%clk
0:03:00.3]} 7. Bg5 {[%clk 0:02:58.4]} 7... a6 {[%clk 0:02:59.9]} 8. Na3 {[%clk
0:02:59]} 8... b5 {[%clk 0:02:59.9]} 9. Nd5 {[%clk 0:02:59.6]} 9... Be7 {[%clk
0:03:00]} 10. Bxf6 {[%clk 0:02:56.8]} 10... Bxf6 {[%clk 0:03:00.9]} 11. c3
{[%clk 0:02:56.7]} 11... O-O {[%clk 0:03:00.1]} 12. Nc2 {[%clk 0:02:55.6]} 12...
Bg5 {[%clk 0:03:00.4]} 13. a4 {[%clk 0:02:55.4]} 13... bxa4 {[%clk 0:03:00]} 14.
Rxa4 {[%clk 0:02:54.5]} 14... a5 {[%clk 0:03:00.4]} 15. Bc4 {[%clk 0:02:53.1]}
15... Rb8 {[%clk 0:03:00.5]} 16. b3 {[%clk 0:02:52.9]} 16... Kh8 {[%clk
0:02:59.1]} 17. O-O {[%clk 0:02:50.4]} 17... f5 {[%clk 0:02:59.1]} 18. exf5
{[%clk 0:01:48.3]} 18... Bxf5 {[%clk 0:03:00]} 19. Nce3 {[%clk 0:01:47.1]} 19...
Be6 {[%clk 0:02:59.3]} 20. Qd3 {[%clk 0:01:41.8]} 20... Qd7 {[%clk 0:02:58.6]}
21. Rfa1 {[%clk 0:01:27.7]} 21... Qf7 {[%clk 0:02:56.4]} 22. f3 {[%clk
0:01:26.2]} 22... Bd8 {[%clk 0:02:44.6]} 23. b4 {[%clk 0:01:21.8]} 23... axb4
{[%clk 0:02:31.3]} 24. Nxb4 {[%clk 0:01:18.4]} 24... Nxb4 {[%clk 0:02:23.7]} 25.
Rxb4 {[%clk 0:01:08.9]} 25... Rxb4 {[%clk 0:02:15.9]} 26. cxb4 {[%clk
0:01:08.8]} 26... Bb6 {[%clk 0:02:15.8]} 27. Kh1 {[%clk 0:00:55.4]} 27... Bd4
{[%clk 0:01:54.7]} 28. Rd1 {[%clk 0:00:43.8]} 28... Rc8 {[%clk 0:01:49.2]} 29.
Bxe6 {[%clk 0:00:40.5]} 29... Qxe6 {[%clk 0:01:50.1]} 30. Rb1 {[%clk 0:00:39.8]}
30... Rc3 {[%clk 0:01:48.8]} 31. Qa6 {[%clk 0:00:33.2]} 31... Bxe3 {[%clk
0:01:44.9]} 32. b5 {[%clk 0:00:30.5]} 32... Qc8 {[%clk 0:01:40.1]} 33. Qa1
{[%clk 0:00:22.6]} 33... Rc1+ {[%clk 0:01:23.3]} 34. Rxc1 {[%clk 0:00:21.7]}
34... Qxc1+ {[%clk 0:01:23.2]} 35. Qxc1 {[%clk 0:00:21.2]} 35... Bxc1 {[%clk
0:01:23.2]} 36. b6 {[%clk 0:00:21.5]} 36... Be3 {[%clk 0:01:23.1]} 37. b7 {[%clk
0:00:20.3]} 37... Ba7 {[%clk 0:01:23]} 38. h4 {[%clk 0:00:19.2]} 38... Kg8
{[%clk 0:01:23.1]} 0-1

[Event "*** SCC Grand Prix: Titled Tuesday Blitz"]
[Site "Chess.com"]
[Date "2020.06.09"]
[Round "8"]
[White "Quattroporte300"]
[Black "MYMChessAcademy"]
[Result "0-1"]
[WhiteElo "2229"]
[BlackElo "2373"]
[TimeControl "180+1"]
[EndTime "10:34:14 PDT"]
[Termination "MYMChessAcademy won by resignation"]

1. e4 {[%clk 0:03:00.9]} 1... c5 {[%clk 0:02:58.9]} 2. Nf3 {[%clk 0:02:59.2]}
2... d6 {[%clk 0:02:59.8]} 3. d4 {[%clk 0:02:59.4]} 3... cxd4 {[%clk 0:02:59.8]}
4. Nxd4 {[%clk 0:03:00.3]} 4... a6 {[%clk 0:03:00.4]} 5. c4 {[%clk 0:02:58]}
5... b6 {[%clk 0:03:00]} 6. Nc3 {[%clk 0:02:58]} 6... Bb7 {[%clk 0:03:00.9]} 7.
Be3 {[%clk 0:02:55.4]} 7... Nf6 {[%clk 0:03:01.8]} 8. Bd3 {[%clk 0:02:52.1]}
8... Nbd7 {[%clk 0:03:02.7]} 9. f3 {[%clk 0:02:46.6]} 9... e6 {[%clk 0:03:02]}
10. O-O {[%clk 0:02:43.5]} 10... Be7 {[%clk 0:03:02.3]} 11. Rc1 {[%clk
0:02:43.2]} 11... O-O {[%clk 0:03:03.2]} 12. Qe2 {[%clk 0:02:36.5]} 12... Rc8
{[%clk 0:03:04.1]} 13. Rfd1 {[%clk 0:02:33.1]} 13... Re8 {[%clk 0:03:03.5]} 14.
b3 {[%clk 0:02:32.4]} 14... Qc7 {[%clk 0:02:39.2]} 15. Qf2 {[%clk 0:02:29.7]}
15... Qb8 {[%clk 0:02:32.9]} 16. Na4 {[%clk 0:02:23.7]} 16... d5 {[%clk
0:02:25.5]} 17. cxd5 {[%clk 0:02:14.2]} 17... exd5 {[%clk 0:02:16.4]} 18. Rxc8
{[%clk 0:01:31.1]} 18... Qxc8 {[%clk 0:02:17.3]} 19. Nf5 {[%clk 0:01:24.8]}
19... dxe4 {[%clk 0:02:05.5]} 20. Nxe7+ {[%clk 0:01:22.5]} 20... Rxe7 {[%clk
0:02:04.7]} 21. fxe4 {[%clk 0:01:18.5]} 21... b5 {[%clk 0:01:34.1]} 22. Rc1
{[%clk 0:01:08.8]} 22... Qe8 {[%clk 0:01:27.1]} 23. Nc5 {[%clk 0:01:06.3]} 23...
Nxc5 {[%clk 0:01:26.2]} 24. Bxc5 {[%clk 0:01:06.1]} 24... Re6 {[%clk 0:01:26.2]}
25. Re1 {[%clk 0:00:36]} 25... Bxe4 {[%clk 0:01:23.6]} 26. Bf1 {[%clk
0:00:20.4]} 26... Bb7 {[%clk 0:01:18.1]} 27. Rxe6 {[%clk 0:00:17.8]} 27... Qxe6
{[%clk 0:01:17.4]} 28. Qd4 {[%clk 0:00:18.6]} 28... Qd5 {[%clk 0:01:08.8]} 29.
Qxd5 {[%clk 0:00:18.5]} 29... Bxd5 {[%clk 0:01:03.8]} 30. Kf2 {[%clk 0:00:19.1]}
30... Ne4+ {[%clk 0:01:03.5]} 0-1

[Event "*** SCC Grand Prix: Titled Tuesday Blitz"]
[Site "Chess.com"]
[Date "2020.06.09"]
[Round "8"]
[White "mfwagnerpeixoto"]
[Black "Maksimus1998"]
[Result "0-1"]
[WhiteElo "2261"]
[BlackElo "2502"]
[TimeControl "180+1"]
[EndTime "10:34:16 PDT"]
[Termination "Maksimus1998 won by resignation"]

1. d4 {[%clk 0:03:00.9]} 1... Nf6 {[%clk 0:02:54.2]} 2. Nf3 {[%clk 0:02:59.4]}
2... e6 {[%clk 0:02:46.9]} 3. Bf4 {[%clk 0:02:58.5]} 3... c5 {[%clk 0:02:42.9]}
4. e3 {[%clk 0:02:57.8]} 4... Nc6 {[%clk 0:02:43]} 5. c3 {[%clk 0:02:53.8]} 5...
Nh5 {[%clk 0:02:41.5]} 6. Bg3 {[%clk 0:02:32.4]} 6... Nxg3 {[%clk 0:02:39.1]} 7.
hxg3 {[%clk 0:02:33.3]} 7... h6 {[%clk 0:02:37.4]} 8. Bd3 {[%clk 0:02:32.1]}
8... d5 {[%clk 0:02:35.8]} 9. Nbd2 {[%clk 0:02:32]} 9... Be7 {[%clk 0:02:33.9]}
10. Qe2 {[%clk 0:02:19.5]} 10... b6 {[%clk 0:02:30.1]} 11. Bb5 {[%clk 0:02:09]}
11... Bd7 {[%clk 0:02:29.6]} 12. Bxc6 {[%clk 0:02:03.7]} 12... Bxc6 {[%clk
0:02:29.3]} 13. Ne5 {[%clk 0:02:04.6]} 13... Qc7 {[%clk 0:02:28.5]} 14. Qh5
{[%clk 0:02:02.6]} 14... Bf6 {[%clk 0:02:24.6]} 15. Ng4 {[%clk 0:01:57.2]} 15...
Be7 {[%clk 0:02:23.9]} 16. Ne5 {[%clk 0:01:56.6]} 16... Bd6 {[%clk 0:02:22.1]}
17. Ndf3 {[%clk 0:01:45.6]} 17... Bb5 {[%clk 0:02:19]} 18. g4 {[%clk 0:01:39.3]}
18... g6 {[%clk 0:02:11.4]} 19. Qh3 {[%clk 0:01:19.1]} 19... O-O-O {[%clk
0:02:08.3]} 20. a4 {[%clk 0:01:17]} 20... Ba6 {[%clk 0:02:04]} 21. a5 {[%clk
0:00:58.7]} 21... bxa5 {[%clk 0:02:03.8]} 22. g5 {[%clk 0:00:51.1]} 22... h5
{[%clk 0:02:00.4]} 23. Kd2 {[%clk 0:00:39]} 23... Qb6 {[%clk 0:01:54.5]} 24. Ra2
{[%clk 0:00:31.6]} 24... Rhf8 {[%clk 0:01:42.2]} 25. Rha1 {[%clk 0:00:29.8]}
25... Qb5 {[%clk 0:01:42.1]} 26. Rxa5 {[%clk 0:00:23.1]} 26... Qe2+ {[%clk
0:01:42]} 27. Kc1 {[%clk 0:00:23.1]} 27... Qf1+ {[%clk 0:01:40.5]} 28. Kc2
{[%clk 0:00:21.6]} 28... Qxf2+ {[%clk 0:01:39.9]} 29. Kb3 {[%clk 0:00:21.2]}
29... Kc7 {[%clk 0:01:33.2]} 30. Rxa6 {[%clk 0:00:15.7]} 30... Rb8+ {[%clk
0:01:32.7]} 31. Ka4 {[%clk 0:00:16.1]} 31... Qxb2 {[%clk 0:01:28.7]} 32. Rxa7+
{[%clk 0:00:14.8]} 32... Kc8 {[%clk 0:01:26.1]} 0-1

[Event "*** SCC Grand Prix: Titled Tuesday Blitz"]
[Site "Chess.com"]
[Date "2020.06.09"]
[Round "8"]
[White "MartinMatthiesen"]
[Black "SoltaniciR"]
[Result "0-1"]
[WhiteElo "2365"]
[BlackElo "2495"]
[TimeControl "180+1"]
[EndTime "10:34:20 PDT"]
[Termination "SoltaniciR won by checkmate"]

1. d4 {[%clk 0:03:00.9]} 1... Nf6 {[%clk 0:02:57.4]} 2. c4 {[%clk 0:03:00.5]}
2... e6 {[%clk 0:02:57.6]} 3. Nf3 {[%clk 0:03:00.1]} 3... Nc6 {[%clk 0:02:56.6]}
4. a3 {[%clk 0:02:50]} 4... d6 {[%clk 0:02:56.1]} 5. Nc3 {[%clk 0:02:43.9]} 5...
g6 {[%clk 0:02:55.9]} 6. e3 {[%clk 0:02:29.2]} 6... Bg7 {[%clk 0:02:56.1]} 7.
Be2 {[%clk 0:02:26.7]} 7... O-O {[%clk 0:02:56]} 8. O-O {[%clk 0:02:26.2]} 8...
e5 {[%clk 0:02:56.1]} 9. dxe5 {[%clk 0:02:15.3]} 9... dxe5 {[%clk 0:02:53.8]}
10. b3 {[%clk 0:02:06.4]} 10... e4 {[%clk 0:02:41.1]} 11. Nd2 {[%clk 0:02:00.8]}
11... Bf5 {[%clk 0:02:28.7]} 12. Bb2 {[%clk 0:01:14.7]} 12... Ne5 {[%clk
0:02:12.3]} 13. h3 {[%clk 0:00:59.3]} 13... h5 {[%clk 0:02:11.2]} 14. Nb5 {[%clk
0:00:50.6]} 14... Re8 {[%clk 0:01:52.8]} 15. Qb1 {[%clk 0:00:41.6]} 15... Qd7
{[%clk 0:01:43.3]} 16. Rd1 {[%clk 0:00:39.8]} 16... c6 {[%clk 0:01:32.9]} 17.
Nf1 {[%clk 0:00:18.6]} 17... Nd3 {[%clk 0:01:21.4]} 18. Nd4 {[%clk 0:00:16.1]}
18... Bxh3 {[%clk 0:01:21]} 19. Bxd3 {[%clk 0:00:15.4]} 19... exd3 {[%clk
0:00:52.1]} 20. Qxd3 {[%clk 0:00:11.3]} 20... Qg4 {[%clk 0:00:45.1]} 21. Qe2
{[%clk 0:00:11.2]} 21... Qxg2# {[%clk 0:00:44.4]} 0-1

[Event "*** SCC Grand Prix: Titled Tuesday Blitz"]
[Site "Chess.com"]
[Date "2020.06.09"]
[Round "8"]
[White "Rinas_Oleg"]
[Black "bmt011"]
[Result "1-0"]
[WhiteElo "2217"]
[BlackElo "2106"]
[TimeControl "180+1"]
[EndTime "10:34:28 PDT"]
[Termination "Rinas_Oleg won by resignation"]

1. e4 {[%clk 0:03:00.9]} 1... e6 {[%clk 0:02:52]} 2. d4 {[%clk 0:02:59.1]} 2...
d5 {[%clk 0:02:47]} 3. Nc3 {[%clk 0:02:58.8]} 3... Nf6 {[%clk 0:02:44.9]} 4. e5
{[%clk 0:02:58.3]} 4... Nfd7 {[%clk 0:02:43]} 5. f4 {[%clk 0:02:58.2]} 5... c5
{[%clk 0:02:43.1]} 6. Nf3 {[%clk 0:02:57.1]} 6... Nc6 {[%clk 0:02:43.6]} 7. Be3
{[%clk 0:02:56.7]} 7... Qb6 {[%clk 0:02:41.5]} 8. a3 {[%clk 0:02:55.5]} 8...
cxd4 {[%clk 0:02:16.7]} 9. Nxd4 {[%clk 0:02:53.8]} 9... Nxd4 {[%clk 0:01:08.9]}
10. Bxd4 {[%clk 0:02:47.7]} 10... Bc5 {[%clk 0:01:09]} 11. Ne2 {[%clk
0:02:27.8]} 11... Bxd4 {[%clk 0:01:05.5]} 12. Qxd4 {[%clk 0:02:26.4]} 12... Qxd4
{[%clk 0:01:00.8]} 13. Nxd4 {[%clk 0:02:25.7]} 13... a6 {[%clk 0:01:01.7]} 14.
a4 {[%clk 0:02:16.1]} 14... b6 {[%clk 0:00:56.2]} 15. a5 {[%clk 0:02:14]} 15...
b5 {[%clk 0:00:54.2]} 16. c3 {[%clk 0:02:07.2]} 16... Bb7 {[%clk 0:00:47.2]} 17.
b4 {[%clk 0:02:01]} 17... Rc8 {[%clk 0:00:44.5]} 18. Kd2 {[%clk 0:02:00.4]}
18... Ke7 {[%clk 0:00:44.5]} 19. Bd3 {[%clk 0:01:54.2]} 19... g6 {[%clk
0:00:34.3]} 20. g4 {[%clk 0:01:49]} 20... f6 {[%clk 0:00:26.1]} 21. exf6+ {[%clk
0:01:44]} 21... Kxf6 {[%clk 0:00:20.4]} 22. Rae1 {[%clk 0:01:42.6]} 22... Rhe8
{[%clk 0:00:20.5]} 23. Re3 {[%clk 0:01:38.4]} 23... Re7 {[%clk 0:00:20.7]} 24.
Rhe1 {[%clk 0:01:33.9]} 24... Rce8 {[%clk 0:00:21.2]} 25. Rh3 {[%clk 0:01:27]}
25... Kg7 {[%clk 0:00:19.8]} 26. Rhe3 {[%clk 0:01:14.8]} 26... e5 {[%clk
0:00:19.3]} 27. fxe5 {[%clk 0:01:11.1]} 27... Nxe5 {[%clk 0:00:19.9]} 28. h3
{[%clk 0:01:06.2]} 28... Nf3+ {[%clk 0:00:19.1]} 29. Nxf3 {[%clk 0:01:04.6]}
29... Rxe3 {[%clk 0:00:17.3]} 30. Rxe3 {[%clk 0:01:03.8]} 30... Rxe3 {[%clk
0:00:16.9]} 31. Kxe3 {[%clk 0:01:03.2]} 31... d4+ {[%clk 0:00:17.8]} 32. Nxd4
{[%clk 0:01:01.8]} 32... Bg2 {[%clk 0:00:18.7]} 33. h4 {[%clk 0:01:00.7]} 1-0

[Event "*** SCC Grand Prix: Titled Tuesday Blitz"]
[Site "Chess.com"]
[Date "2020.06.09"]
[Round "8"]
[White "esrosenberg"]
[Black "Quiet_Desperation"]
[Result "0-1"]
[WhiteElo "2197"]
[BlackElo "1920"]
[TimeControl "180+1"]
[EndTime "10:34:29 PDT"]
[Termination "Quiet_Desperation won on time"]

1. Nf3 {[%clk 0:03:00.9]} 1... d5 {[%clk 0:02:58.1]} 2. c4 {[%clk 0:03:00.8]}
2... Nf6 {[%clk 0:02:57.7]} 3. cxd5 {[%clk 0:02:58.8]} 3... Nxd5 {[%clk
0:02:57.4]} 4. d4 {[%clk 0:02:58.9]} 4... Nc6 {[%clk 0:02:55.7]} 5. e4 {[%clk
0:02:58.1]} 5... Nb6 {[%clk 0:02:54.3]} 6. d5 {[%clk 0:02:55.9]} 6... Nb8 {[%clk
0:02:53.7]} 7. Nc3 {[%clk 0:02:50.9]} 7... Bg4 {[%clk 0:02:48.4]} 8. a4 {[%clk
0:02:34.7]} 8... a5 {[%clk 0:02:45.3]} 9. Be3 {[%clk 0:02:26.3]} 9... N8d7
{[%clk 0:02:44.4]} 10. Bb5 {[%clk 0:02:22.4]} 10... e6 {[%clk 0:02:24.1]} 11. h3
{[%clk 0:01:47]} 11... Bxf3 {[%clk 0:01:52.2]} 12. gxf3 {[%clk 0:01:24.4]} 12...
exd5 {[%clk 0:01:33.9]} 13. Bxb6 {[%clk 0:01:20.1]} 13... cxb6 {[%clk
0:01:31.8]} 14. Qxd5 {[%clk 0:01:15.7]} 14... Bb4 {[%clk 0:01:28.7]} 15. Rd1
{[%clk 0:01:04.8]} 15... O-O {[%clk 0:01:28.2]} 16. Qxd7 {[%clk 0:01:00.3]}
16... Qf6 {[%clk 0:01:21]} 17. O-O {[%clk 0:00:44.3]} 17... Qxf3 {[%clk
0:01:09.7]} 18. Rd3 {[%clk 0:00:39.6]} 18... Qh5 {[%clk 0:01:08.8]} 19. Nd5
{[%clk 0:00:20.9]} 19... Bc5 {[%clk 0:01:01]} 20. Rg3 {[%clk 0:00:18.3]} 20...
Kh8 {[%clk 0:01:00.2]} 21. Qg4 {[%clk 0:00:11.4]} 21... Qe5 {[%clk 0:00:58.4]}
22. Kg2 {[%clk 0:00:05.7]} 22... f5 {[%clk 0:00:57.4]} 23. Qg5 {[%clk
0:00:02.1]} 23... Qxe4+ {[%clk 0:00:57.3]} 24. f3 {[%clk 0:00:01.4]} 24... Qe5
{[%clk 0:00:52.7]} 0-1

[Event "*** SCC Grand Prix: Titled Tuesday Blitz"]
[Site "Chess.com"]
[Date "2020.06.09"]
[Round "8"]
[White "Charlottemillard17"]
[Black "Shivagami"]
[Result "0-1"]
[WhiteElo "1519"]
[BlackElo "2268"]
[TimeControl "180+1"]
[EndTime "10:34:31 PDT"]
[Termination "Shivagami won by checkmate"]

1. e4 {[%clk 0:03:00.9]} 1... c5 {[%clk 0:02:57.2]} 2. Nf3 {[%clk 0:02:59.4]}
2... d6 {[%clk 0:02:57.1]} 3. d4 {[%clk 0:02:58.7]} 3... cxd4 {[%clk 0:02:56.9]}
4. Nxd4 {[%clk 0:02:59.6]} 4... Nf6 {[%clk 0:02:57.3]} 5. Nc3 {[%clk 0:02:59.2]}
5... a6 {[%clk 0:02:57.6]} 6. f4 {[%clk 0:02:58.5]} 6... e5 {[%clk 0:02:52.8]}
7. Nb3 {[%clk 0:02:55.1]} 7... b5 {[%clk 0:02:35.8]} 8. f5 {[%clk 0:02:47.6]}
8... Be7 {[%clk 0:02:26.4]} 9. Be2 {[%clk 0:02:26.8]} 9... O-O {[%clk
0:02:15.8]} 10. g4 {[%clk 0:02:16.2]} 10... b4 {[%clk 0:02:06.9]} 11. Nb1 {[%clk
0:02:08.8]} 11... d5 {[%clk 0:01:50.6]} 12. exd5 {[%clk 0:01:35.5]} 12... Qxd5
{[%clk 0:01:35.7]} 13. Qxd5 {[%clk 0:01:35.2]} 13... Nxd5 {[%clk 0:01:35.2]} 14.
Bd3 {[%clk 0:01:13.4]} 14... Bb7 {[%clk 0:01:26.1]} 15. Rg1 {[%clk 0:00:57]}
15... a5 {[%clk 0:01:20.5]} 16. h4 {[%clk 0:00:53.8]} 16... Bxh4+ {[%clk
0:01:18.7]} 17. Kd2 {[%clk 0:00:50.9]} 17... Nf4 {[%clk 0:01:03.2]} 18. g5
{[%clk 0:00:39.6]} 18... e4 {[%clk 0:00:55.5]} 19. Bc4 {[%clk 0:00:28.5]} 19...
Bf2 {[%clk 0:00:46.6]} 20. Rf1 {[%clk 0:00:25.5]} 20... e3+ {[%clk 0:00:43.1]}
21. Kd1 {[%clk 0:00:23.3]} 21... Bf3+ {[%clk 0:00:43.3]} 22. Be2 {[%clk
0:00:19.4]} 22... Bxe2# {[%clk 0:00:43.5]} 0-1

[Event "*** SCC Grand Prix: Titled Tuesday Blitz"]
[Site "Chess.com"]
[Date "2020.06.09"]
[Round "8"]
[White "pastouche06"]
[Black "EvgenyRomanov"]
[Result "0-1"]
[WhiteElo "2488"]
[BlackElo "2670"]
[TimeControl "180+1"]
[EndTime "10:34:33 PDT"]
[Termination "EvgenyRomanov won by resignation"]

1. d4 {[%clk 0:03:00.9]} 1... d5 {[%clk 0:02:58.7]} 2. c4 {[%clk 0:03:00.3]}
2... e6 {[%clk 0:02:59.6]} 3. Nc3 {[%clk 0:03:00]} 3... Bb4 {[%clk 0:02:59.1]}
4. a3 {[%clk 0:02:58.2]} 4... Bxc3+ {[%clk 0:02:57.9]} 5. bxc3 {[%clk
0:02:59.1]} 5... b6 {[%clk 0:02:55.4]} 6. cxd5 {[%clk 0:02:56.9]} 6... exd5
{[%clk 0:02:55.4]} 7. e3 {[%clk 0:02:56.8]} 7... Nf6 {[%clk 0:02:53.1]} 8. Bd3
{[%clk 0:02:56.7]} 8... O-O {[%clk 0:02:52.5]} 9. Ne2 {[%clk 0:02:56.7]} 9... c5
{[%clk 0:02:51.4]} 10. O-O {[%clk 0:02:56.5]} 10... Ba6 {[%clk 0:02:51.5]} 11.
f3 {[%clk 0:02:54.4]} 11... Bxd3 {[%clk 0:02:49.6]} 12. Qxd3 {[%clk 0:02:55.3]}
12... Re8 {[%clk 0:02:45.5]} 13. Ng3 {[%clk 0:02:54.3]} 13... Nc6 {[%clk
0:02:43.6]} 14. Bb2 {[%clk 0:02:53.5]} 14... Na5 {[%clk 0:02:40.2]} 15. Rae1
{[%clk 0:02:48.8]} 15... Nc4 {[%clk 0:02:38.1]} 16. Bc1 {[%clk 0:02:48.6]} 16...
cxd4 {[%clk 0:02:38.3]} 17. cxd4 {[%clk 0:02:48.3]} 17... b5 {[%clk 0:02:37.2]}
18. e4 {[%clk 0:02:43.7]} 18... Qb6 {[%clk 0:02:36]} 19. Bg5 {[%clk 0:02:15.6]}
19... h6 {[%clk 0:02:29.5]} 20. Bxf6 {[%clk 0:02:05.4]} 20... Qxf6 {[%clk
0:02:30.4]} 21. e5 {[%clk 0:01:49.7]} 21... Qg6 {[%clk 0:02:26.7]} 22. Nf5
{[%clk 0:01:19.7]} 22... a5 {[%clk 0:02:18.7]} 23. g4 {[%clk 0:01:14.9]} 23...
b4 {[%clk 0:02:12.6]} 24. axb4 {[%clk 0:01:13.5]} 24... axb4 {[%clk 0:02:13.2]}
25. Rb1 {[%clk 0:01:13.5]} 25... Qb6 {[%clk 0:02:11.5]} 26. Kh1 {[%clk
0:00:55.6]} 26... Ra3 {[%clk 0:02:09.6]} 27. Qe2 {[%clk 0:00:43.3]} 27... b3
{[%clk 0:01:54.8]} 28. g5 {[%clk 0:00:23.8]} 28... hxg5 {[%clk 0:01:50.6]} 29.
Rg1 {[%clk 0:00:23.8]} 29... Qg6 {[%clk 0:01:40.6]} 30. Ne3 {[%clk 0:00:22.5]}
30... Ra2 {[%clk 0:01:15.5]} 31. Qe1 {[%clk 0:00:22.6]} 31... Qh5 {[%clk
0:01:12.8]} 32. Ng4 {[%clk 0:00:18.2]} 32... Nd2 {[%clk 0:01:05]} 0-1

[Event "*** SCC Grand Prix: Titled Tuesday Blitz"]
[Site "Chess.com"]
[Date "2020.06.09"]
[Round "8"]
[White "Lagmantr"]
[Black "mishanick"]
[Result "0-1"]
[WhiteElo "2716"]
[BlackElo "2937"]
[TimeControl "180+1"]
[EndTime "10:34:38 PDT"]
[Termination "mishanick won on time"]

1. e4 {[%clk 0:03:00.9]} 1... c5 {[%clk 0:02:59.9]} 2. Nf3 {[%clk 0:03:00.9]}
2... d6 {[%clk 0:03:00.3]} 3. d4 {[%clk 0:02:58.5]} 3... cxd4 {[%clk 0:03:01.2]}
4. Nxd4 {[%clk 0:02:59.1]} 4... Nf6 {[%clk 0:03:02.1]} 5. Nc3 {[%clk 0:02:56.7]}
5... a6 {[%clk 0:03:02.8]} 6. Be3 {[%clk 0:02:56.6]} 6... e5 {[%clk 0:03:03.1]}
7. Nb3 {[%clk 0:02:56.7]} 7... Be6 {[%clk 0:03:03.5]} 8. f3 {[%clk 0:02:56.5]}
8... Nbd7 {[%clk 0:03:04.2]} 9. Qd2 {[%clk 0:02:50.8]} 9... b5 {[%clk
0:03:04.4]} 10. a4 {[%clk 0:02:35.5]} 10... b4 {[%clk 0:03:04.3]} 11. Nd5 {[%clk
0:02:35.3]} 11... Bxd5 {[%clk 0:03:04.8]} 12. exd5 {[%clk 0:02:36.2]} 12... Nb6
{[%clk 0:03:05.4]} 13. Bg5 {[%clk 0:02:14]} 13... Be7 {[%clk 0:02:58.1]} 14.
Bxf6 {[%clk 0:02:10.2]} 14... Bxf6 {[%clk 0:02:57.8]} 15. a5 {[%clk 0:02:10.1]}
15... Bg5 {[%clk 0:02:52.8]} 16. Qxb4 {[%clk 0:02:02.9]} 16... Nxd5 {[%clk
0:02:52.8]} 17. Qa4+ {[%clk 0:02:00.8]} 17... Qd7 {[%clk 0:02:48]} 18. Qxd7+
{[%clk 0:01:42.1]} 18... Kxd7 {[%clk 0:02:48.9]} 19. Bd3 {[%clk 0:01:27.3]}
19... Ne3 {[%clk 0:02:43.6]} 20. Kf2 {[%clk 0:01:12.6]} 20... Rhc8 {[%clk
0:02:42]} 21. Rae1 {[%clk 0:00:46.5]} 21... Nxc2 {[%clk 0:02:39.2]} 22. Bf5+
{[%clk 0:00:46.4]} 22... Ke7 {[%clk 0:02:38.7]} 23. Re2 {[%clk 0:00:46.5]} 23...
Nb4 {[%clk 0:02:32.2]} 24. Bxc8 {[%clk 0:00:44.9]} 24... Rxc8 {[%clk 0:02:33.1]}
25. g3 {[%clk 0:00:39.5]} 25... Rb8 {[%clk 0:02:13.8]} 26. Rd1 {[%clk
0:00:32.5]} 26... f5 {[%clk 0:02:00.4]} 27. f4 {[%clk 0:00:28]} 27... Bf6 {[%clk
0:02:00.9]} 28. Nd4 {[%clk 0:00:27.4]} 28... g6 {[%clk 0:02:00.1]} 29. g4 {[%clk
0:00:13.5]} 29... fxg4 {[%clk 0:01:50.4]} 30. h3 {[%clk 0:00:08.4]} 30... gxh3
{[%clk 0:01:49.4]} 31. fxe5 {[%clk 0:00:08.3]} 31... dxe5 {[%clk 0:01:48.1]} 32.
Nf3 {[%clk 0:00:08.4]} 32... Ke6 {[%clk 0:01:45.1]} 33. Nd4+ {[%clk 0:00:07.5]}
33... Kf7 {[%clk 0:01:43.8]} 34. Nf3 {[%clk 0:00:07.6]} 34... Rb5 {[%clk
0:01:44.3]} 35. Rd6 {[%clk 0:00:05.4]} 35... Rxa5 {[%clk 0:01:40.6]} 36. Rb6
{[%clk 0:00:05.3]} 36... Nd3+ {[%clk 0:01:38.9]} 37. Kg3 {[%clk 0:00:03.8]}
37... Nf4 {[%clk 0:01:38.5]} 38. Rb7+ {[%clk 0:00:03.4]} 38... Ke6 {[%clk
0:01:37.4]} 39. Nd4+ {[%clk 0:00:03.6]} 39... Kd6 {[%clk 0:01:32.4]} 40. Nf3
{[%clk 0:00:02.3]} 40... Nxe2+ {[%clk 0:01:28.9]} 0-1

[Event "*** SCC Grand Prix: Titled Tuesday Blitz"]
[Site "Chess.com"]
[Date "2020.06.09"]
[Round "8"]
[White "chessplayer9919"]
[Black "BaMBoMaTTo"]
[Result "0-1"]
[WhiteElo "2520"]
[BlackElo "2649"]
[TimeControl "180+1"]
[EndTime "10:34:38 PDT"]
[Termination "BaMBoMaTTo won on time"]

1. d4 {[%clk 0:03:00.9]} 1... Nf6 {[%clk 0:02:59.7]} 2. c4 {[%clk 0:02:59.5]}
2... g6 {[%clk 0:03:00.3]} 3. Nc3 {[%clk 0:02:59.5]} 3... d5 {[%clk 0:03:00.9]}
4. cxd5 {[%clk 0:03:00.4]} 4... Nxd5 {[%clk 0:03:01.8]} 5. e4 {[%clk 0:03:01.1]}
5... Nxc3 {[%clk 0:03:01]} 6. bxc3 {[%clk 0:03:02]} 6... Bg7 {[%clk 0:03:01.4]}
7. Bc4 {[%clk 0:03:02.4]} 7... c5 {[%clk 0:03:01.1]} 8. Ne2 {[%clk 0:03:02.5]}
8... Nc6 {[%clk 0:03:00.6]} 9. Be3 {[%clk 0:03:02.1]} 9... O-O {[%clk
0:03:00.4]} 10. O-O {[%clk 0:03:01.8]} 10... Bg4 {[%clk 0:03:00.9]} 11. f3
{[%clk 0:03:01.9]} 11... Bd7 {[%clk 0:03:00.9]} 12. Rb1 {[%clk 0:02:51.6]} 12...
Qc7 {[%clk 0:02:59.3]} 13. d5 {[%clk 0:02:37.3]} 13... Na5 {[%clk 0:02:57]} 14.
Bd3 {[%clk 0:02:36.9]} 14... e6 {[%clk 0:02:55.9]} 15. c4 {[%clk 0:02:36.1]}
15... b5 {[%clk 0:02:55.6]} 16. cxb5 {[%clk 0:02:25.5]} 16... c4 {[%clk
0:02:55.7]} 17. Bc2 {[%clk 0:02:24.4]} 17... exd5 {[%clk 0:02:55.4]} 18. exd5
{[%clk 0:02:23]} 18... Rfe8 {[%clk 0:02:51.7]} 19. Bf2 {[%clk 0:02:22.9]} 19...
c3 {[%clk 0:02:49.4]} 20. Nd4 {[%clk 0:02:20.7]} 20... Nc4 {[%clk 0:02:47.8]}
21. Nc6 {[%clk 0:02:04.7]} 21... Nd2 {[%clk 0:02:36.5]} 22. Re1 {[%clk
0:01:28.3]} 22... Nxb1 {[%clk 0:02:35.8]} 23. Qxb1 {[%clk 0:01:23.6]} 23...
Rxe1+ {[%clk 0:02:33.8]} 24. Qxe1 {[%clk 0:01:24.5]} 24... Re8 {[%clk
0:02:33.1]} 25. Qd1 {[%clk 0:01:21.5]} 25... Qf4 {[%clk 0:01:42.2]} 26. Bxa7
{[%clk 0:00:40.1]} 26... Bf5 {[%clk 0:01:42.4]} 27. Bxf5 {[%clk 0:00:33.1]}
27... Qxf5 {[%clk 0:01:43.3]} 28. Nb4 {[%clk 0:00:25.8]} 28... Bf8 {[%clk
0:01:16.6]} 29. Nc2 {[%clk 0:00:22.2]} 29... Rd8 {[%clk 0:01:16.9]} 30. Ne3
{[%clk 0:00:11.8]} 30... Qc8 {[%clk 0:01:16.9]} 31. Qc2 {[%clk 0:00:08.4]} 31...
Bc5 {[%clk 0:01:15.7]} 32. Bxc5 {[%clk 0:00:05.3]} 32... Qxc5 {[%clk 0:01:16.6]}
33. Kf2 {[%clk 0:00:04.1]} 33... Rxd5 {[%clk 0:01:17]} 34. Kg3 {[%clk
0:00:01.6]} 34... Qxe3 {[%clk 0:01:16.6]} 0-1